Cogmind - Beta 13 @@@ ROGUE MODE // 2024.03.04 @ 19:31:30 Player: Mogwok Wargfriend Result: Destroyed by D-53 Grenadier with Mini Grenade Launcher Performance ------------- Evolutions (1) 500 Regions Visited (3) 600 Robots Destroyed (8) 40 Value Destroyed (226) 226 Prototype IDs (2) 40 Alien Tech Used (0) 0 Bonus (0) 0 TOTAL SCORE: 1406 Bonus ------- None Cogmind --------- Core Integrity 0/400 Matter 300/300 Energy 99/100 System Corruption 3% Temperature Cool (0) Movement Core (50) Location -9/Mines Parts ------- > --- POWER (1) -------- (None) > --- PROPULSION (3) --- (None) > --- UTILITY (3) ------ Visual Processing Unit > --- WEAPON (2) ------- (None) > --- INVENTORY (5) ---- Improved Targeting Computer EM Pulse Gun Grenade Launcher Rocket Launcher Peak State ------------ > --- POWER ------------ (None) > --- PROPULSION ------- Aluminum Leg Aluminum Leg Aluminum Leg > --- UTILITY ---------- Small Storage Unit Small Matter Pod Visual Processing Unit > --- WEAPON ----------- EM Pulse Gun Light Assault Rifle > --- INVENTORY -------- Improved Aluminum Leg Flight Unit Improved Targeting Computer Improved Targeting Computer EM Pulse Gun Small Laser Small Laser Light Assault Rifle [Rating: 10] Favorites ----------- Power Light Ion Engine Engine Light Ion Engine Propulsion Wheel Leg Aluminum Leg Wheel Wheel Utility Small Storage Unit Storage Small Storage Unit Processor Visual Processing Unit Weapon Light Assault Rifle Energy Gun EM Pulse Gun Ballistic Gun Light Assault Rifle Build | -11 -10 -9 -9 ------- Run | Yrd Mat Mat Min Slots Evolved 2 | . . 2 . Power . | . . . . Propulsion 1 | . . 1 . Utility 1 | . . 1 . Weapon . | . . . . Parts Attached 17 | 6 1 7 3 Power 3 | 1 . 1 1 Engine 3 | 1 . 1 1 Core . | . . . . Reactor . | . . . . Propulsion 8 | 2 . 5 1 Treads . | . . . . Leg 6 | . . 5 1 Wheel 2 | 2 . . . Hover . | . . . . Flight . | . . . . Utility 3 | 1 1 1 . Device . | . . . . Storage 2 | 1 1 . . Processor 1 | . . 1 . Hackware . | . . . . Protection . | . . . . Artifact . | . . . . Weapon 3 | 2 . . 1 Energy Gun 1 | 1 . . . Energy Cannon . | . . . . Ballistic Gun 2 | 1 . . 1 Ballistic Cannon . | . . . . Launcher . | . . . . Special Weapon . | . . . . Impact Weapon . | . . . . Slashing Weapon . | . . . . Piercing Weapon . | . . . . Special Melee Weapon . | . . . . Unidentified Prototypes . | . . . . Corrupted Parts 2 | . . 2 . System Corruption 3 | . . 3 . Parts Lost 12 | . . 5 7 Power 2 | . . 2 . Propulsion 6 | . . 2 4 Utility 1 | . . . 1 Weapon 3 | . . 1 2 Highest Loss Streak 8 | . . 4 8 To Critical Strikes . | . . . . Average Slot Usage (%) 82 | . 91 78 53 Engine 9 | . 14 6 1 Leg 7 | . . 14 22 Wheel 19 | . 28 11 . Storage 19 | . 19 22 9 Processor 2 | . . 3 11 Energy Gun 11 | . 14 11 . Ballistic Gun 12 | . 14 11 9 Naked Turns . | . . . . Heaviest Build 12 | 11 12 12 10 Greatest Support 33 | 26 26 30 33 Greatest Overweight (x) . | . . . . Average Overweight (x) . | . . . . Largest Inventory Capacity 8 | 8 8 8 8 Average Capacity 7 | 6 8 8 6 Most Carried 8 | 4 8 8 8 Average Carried 6 | 1 6 7 5 Final Capacity 8 | 8 8 8 5 Final Carried 8 | 4 8 8 4 Class Distribution -------------------- 100% | Mutant Dominant Class ---------------- Mutant | -10/Materials Mutant | -9/Materials Mutant | -9/Mines Resources | -11 -10 -9 -9 ----------- Run | Yrd Mat Mat Min Matter Collected 416 | 180 50 171 15 Remotely . | . . . . Salvage Created 266 | . 50 182 34 Parts 20 | . 4 11 5 Haulers Intercepted . | . . . . Recyclers Shooed 1 | . . 1 . Parts Field Recycled . | . . . . Retrieved Matter . | . . . . Parts Self-Destructed . | . . . . Prevented . | . . . . Kills | -11 -10 -9 -9 ------- Run | Yrd Mat Mat Min Combat Hostiles Destroyed 7 | . 1 3 3 Guns 7 | . 1 3 3 Classes Destroyed 5 | . 1 3 1 Watcher 1 | . . 1 . Swarmer 3 | . . . 3 Grunt 2 | . 1 1 . Duelist 1 | . . 1 . Sentry 1 | . . 1 . Best Kill Streak 3 | . 1 3 3 Combat Bots Only 3 | . 1 2 3 Max Kills in Single Turn 1 | . 1 1 1 Gunslinging . | . . . . Exploded . | . . . . Melee . | . . . . Uniques/NPCs Destroyed . | . . . . Combat | -11 -10 -9 -9 -------- Run | Yrd Mat Mat Min Hostile Shots Fired 88 | . 2 39 47 Missed 23 | . . 12 11 Damage Taken 1173 | . 21 461 691 Core 406 | . . 137 269 Absorbed by Shields . | . . . . Core Remaining (%) 100 | 100 100 . . Volleys Fired 30 | . 9 15 6 Largest 2 | . 2 2 2 Hottest 60 | . 60 60 40 Shots Fired 57 | . 18 30 9 Gun 57 | . 18 30 9 Cannon . | . . . . Launcher . | . . . . Special . | . . . . Kinetic 33 | . 9 15 9 Thermal . | . . . . Explosive . | . . . . Electromagnetic 24 | . 9 15 . Robot Hit Streak 5 | . 4 5 3 Robot Miss Streak 2 | . 2 2 2 Penetration Max . | . . . . Secondary Targets 1 | . . . 1 Max Gunslinging Chain 1 | . . . 1 Shots Hit Robots 35 | . 11 20 4 Core Hits 16 | . 3 9 4 Critical Kills . | . . . . Critical Parts Destroyed . | . . . . Critical Strikes . | . . . . Melee Attacks . | . . . . Impact . | . . . . Slashing . | . . . . Piercing . | . . . . Sneak Attacks . | . . . . Combat Hostiles . | . . . . Follow-up Attacks . | . . . . Damage Inflicted 393 | . 103 223 67 Guns 382 | . 103 223 56 Cannons . | . . . . Explosions . | . . . . Melee . | . . . . Ramming 11 | . . . 11 Kinetic 178 | . 47 75 56 Thermal . | . . . . Explosive . | . . . . Electromagnetic 204 | . 56 148 . Impact . | . . . . Slashing . | . . . . Piercing . | . . . . Highest Corruption 3 | . . 3 3 Average Corruption 2 | . . 2 3 Corruption Purged . | . . . . Corruption Blocked . | . . . . Effects 3 | . . 2 1 Matter Fused 2 | . . 2 . Data Loss (major) 1 | . . . 1 Overload Shots . | . . . . Overflow Damage . | . . . . Projectiles . | . . . . Explosions . | . . . . Melee . | . . . . Knockbacks . | . . . . Impact . | . . . . Kinetic . | . . . . Secondary . | . . . . Self-Inflicted Damage 5 | . . . 5 Shots . | . . . . Rammed 1 | . . . 1 Targets Rammed 1 | . . . 1 Kicked . | . . . . Crushed . | . . . . Highest Temperature 52 | . 52 28 . Average Temperature 14 | . 19 10 . Received Heat Transfer 157 | . 12 105 40 Siege Activations . | . . . . Robots Corrupted . | . . . . Combat Hostiles . | . . . . Parts Fried 2 | . . 2 . Impact Corruptions . | . . . . Robots Melted . | . . . . Combat Hostiles . | . . . . Parts Melted 1 | . . . 1 Heat Transferred . | . . . . Parts Sabotaged . | . . . . Parts Stolen . | . . . . Parts Stripped . | . . . . Power Chain Reactions . | . . . . Alert | -11 -10 -9 -9 ------- Run | Yrd Mat Mat Min Peak Influence 138 | . 110 138 119 Initial 49 | . . 46 49 Average 58 | . 49 80 73 Maximum Alert Level . | . . . . Low Security (%) 100 | 100 100 100 100 Level 1 . | . . . . Level 2 . | . . . . Level 3 . | . . . . Level 4 . | . . . . Level 5 . | . . . . High Security . | . . . . Max Security . | . . . . Squads Dispatched 1 | . 1 . . Investigation . | . . . . Extermination . | . . . . Reinforcement 1 | . 1 . . Assault . | . . . . Garrison . | . . . . Intercept . | . . . . Searches Triggered . | . . . . Construction Impeded . | . . . . Haulers Reinforced . | . . . . Active Scanning Responses . | . . . . Cargo Convoy Interrupts . | . . . . Stealth | -11 -10 -9 -9 --------- Run | Yrd Mat Mat Min Distress Signals . | . . . . Communications Jammed . | . . . . Distress Signals . | . . . . Times Spotted 37 | . 5 7 25 Peak Tracking Total 16 | . 1 3 16 Tactical Retreats . | . . . . Traps | -11 -10 -9 -9 ------- Run | Yrd Mat Mat Min Traps Triggered . | . . . . Indirectly . | . . . . Trap Hack Attempts . | . . . . Triggered . | . . . . Disarmed . | . . . . Reprogrammed . | . . . . Reused . | . . . . Traps Extracted . | . . . . Installed . | . . . . Triggered . | . . . . Machines | -11 -10 -9 -9 ---------- Run | Yrd Mat Mat Min Machines Disabled 2 | . 2 . . Max in Single Turn 1 | . 1 . . Machines Repaired . | . . . . Machines Dismantled . | . . . . Machines Sabotaged . | . . . . Overloaded Fab Kills . | . . . . Hacking | -11 -10 -9 -9 --------- Run | Yrd Mat Mat Min Machines Accessed 5 | . 3 2 . Terminals 4 | . 3 1 . Fabricators . | . . . . Repair Stations . | . . . . Recycling Units . | . . . . Scanalyzers 1 | . . 1 . Garrison Access . | . . . . Total Hacks 11 | . 8 3 . Successful 5 | . 3 2 . Failed 6 | . 5 1 . Catastrophic 1 | . 1 . . Database Lockouts . | . . . . Manual 2 | . 1 1 . Terminals 9 | . 8 1 . Fabricators . | . . . . Repair Stations . | . . . . Recycling Units . | . . . . Scanalyzers 2 | . . 2 . Garrison Access . | . . . . Terminal Hacks 3 | . 3 . . Record 1 | . 1 . . Prototype ID Bank 1 | . 1 . . Dispatch Records 1 | . 1 . . Fabricator Hacks . | . . . . Repair Station Hacks . | . . . . Recycling Unit Hacks . | . . . . Scanalyzer 2 | . . 2 . Insert Component 1 | . . 1 . Analyze 1 | . . 1 . Garrison Access Hacks . | . . . . Unauthorized Hacks . | . . . . Terminals . | . . . . Fabricators . | . . . . Repair Stations . | . . . . Recycling Units . | . . . . Scanalyzers . | . . . . Garrison Access . | . . . . Data Cores Recovered . | . . . . Used . | . . . . Hacking Detections 5 | . 3 2 . Full Trace Events . | . . . . Feedback Events . | . . . . Feedback Blocked . | . . . . Robot Schematics Acquired . | . . . . Robots Built . | . . . . Authchips . | . . . . Time . | . . . . Total Robot Build Rating . | . . . . Part Schematics Acquired 1 | . . 1 . Parts Built . | . . . . Authchips . | . . . . Time . | . . . . Total Part Build Rating . | . . . . Parts Repaired . | . . . . Time . | . . . . Parts Recycled . | . . . . Recycled Matter . | . . . . Retrieved Matter . | . . . . Retrieved Components . | . . . . Parts Scanalyzed 1 | . . 1 . Part Schematics Acquired 1 | . . 1 . Parts Damaged . | . . . . Bothacking | -11 -10 -9 -9 ------------ Run | Yrd Mat Mat Min Used RIF Installer . | . . . . Robots Hacked . | . . . . Non-combat . | . . . . Combat . | . . . . Robot Hacks Applied . | . . . . Relay Couplers Released . | . . . . Fabnet Peak Effective % . | . . . . Robots Rewired . | . . . . Allies Hacked . | . . . . Hacks Repelled . | . . . . Allies | -11 -10 -9 -9 -------- Run | Yrd Mat Mat Min Total Allies . | . . . . Largest Group . | . . . . Highest-Rated Group . | . . . . Highest-Rated Ally . | . . . . Total Orders . | . . . . Ally Attacks . | . . . . Total Damage . | . . . . Kills . | . . . . Allies Corrupted . | . . . . Allies Melted . | . . . . Intel | -11 -10 -9 -9 ------- Run | Yrd Mat Mat Min Robot Analysis Total . | . . . . Derelict Logs Recovered . | . . . . Drone Launches . | . . . . Drone Recoveries . | . . . . Exploration | -11 -10 -9 -9 ------------- Run | Yrd Mat Mat Min Turns Passed 651 | 48 327 222 54 Spaces Moved 562 | 46 303 156 57 Core 66 | 15 . . 51 Treads . | . . . . Legs 67 | . . 61 6 Wheels 429 | 31 303 95 . Hover . | . . . . Flight . | . . . . Fastest Speed 50 | 50 90 90 50 Average Speed 88 | 76 90 101 57 Slowest Speed 120 | 90 90 120 120 Overloaded Moves . | . . . . Propulsion Burnouts . | . . . . Robots Hopped . | . . . . Cave-ins Triggered . | . . . . Exploration Rate (%) 17 | 3 32 13 20 Regions Visited 3 Branch Regions 1 Pre-discovered Areas . | . . . . Known Exits Taken . | . . . . Unknown Exits Taken 3 | 1 1 1 . Scrap Searched . | . . . . Spaces Dug . | . . . . Terrain Destroyed . | . . . . Melee . | . . . . Projectile . | . . . . AOE . | . . . . Terrain Rammed . | . . . . Walls Destroyed . | . . . . Machines Disabled . | . . . . Actions | -11 -10 -9 -9 --------- Run | Yrd Mat Mat Min Total 659 | 55 340 192 72 Wait 33 | . 24 9 . Move 559 | 45 302 155 57 Hop . | . . . . Pick Up 13 | 4 4 4 1 Fast Attach 12 | 6 1 3 2 Attach 5 | . . 4 1 Detach 1 | . . 1 . Swap . | . . . . Drop 5 | . . 1 4 Fire 30 | . 9 15 6 Melee . | . . . . Ram 1 | . . . 1 Kick . | . . . . Crush . | . . . . Escape Stasis . | . . . . Rewire . | . . . . Trap . | . . . . Miscellaneous . | . . . . Route ------- -11/Scrapyard -10/Materials (discovered 2 exits: *Mat / [*Min]) -9/Materials -9/Mines History --------- Turn | Location | Event 15 | -11/Scrapyard | Discovered new exit (range 15) 49 | -11/Scrapyard | Entered Materials 164 | -10/Materials | Discovered new exit (range 15) 314 | -10/Materials | Build established: Mutant 314 | -10/Materials | Discovered new exit (range 10) 376 | -10/Materials | Entered another Materials area 376 | -9/Materials | Evolved 2 slots: Propulsion x1, Utility x1 527 | -9/Materials | Lost 4 parts (2p2n) 573 | -9/Materials | Discovered new exit (range 15) 598 | -9/Materials | Entered Mines 599 | -9/Mines | Assembled infested the area 620 | -9/Mines | Core integrity fell below 50% 635 | -9/Mines | Received a Rocket Launcher from a helpful Derelict 651 | -9/Mines | Core integrity fell below 20% 652 | -9/Mines | Destroyed by D-53 Grenadier with Mini Grenade Launcher Last Messages --------------- 00631_ 0V-OH7(g): "Pshh... whatever." 00631_ as-34429 destroyed. 00631_ U-05 Engineer lays Concrete. 00632_ 0V-OH7(g): "Everyone knows a good old rocket launcher goes a long way." 00633_ 0V-OH7(g): "Need to get rid of a swarm? Done. Need a big hole in the wall? Done." 00633_ U-05 Engineer lays Concrete. 00634_ 0V-OH7(g): "Need a small hole in the wall? Leave that to the mining laser wimps, I say!" 00634_ U-05 Engineer lays Concrete. 00635_ 0V-OH7(g): "Would you like a rocket launcher? I know I would if I were you, so I'm going to lend you mine." 00635_ 0V-OH7(g) slips back into the shadows. 00636_ U-05 Engineer lays Concrete. 00636_ Acquired Rocket Launcher. 00650_ Imp. Aluminum Leg destroyed. 00650_ T-07 Excavator destroyed. Map ----- +----------------------------------------------------+ | ??????????????#???# ##??????????????????? | | ?????????????## ### #??????????????????? | | ?????????????# ## #??????????????????? | | ????????????## [ #??????????????????? | | ??????????? #???????????????????? | | ???????# # #???????????????????? | | ???????# #?????????###???????? | | ???????#### % %[!! #?????#### ???????? | | ??????????# ![ #????? ??????? | | ??????????# ##???? ??????? | | ??????????# #????# ##?????? | | ???????????# = ##??## ?????? | | ???????#???# !% #?# ?????? | | ???????# # % #? #???????? | | ????????# ## ##??????? | | ????????## ## #??????? | | ?????????# ##### #??????? | | ????????# ????# ##?????? | | ???????# ?????# #?????? | | ???????# ????## #????? | | ???????# ?????# #???? | | ???????# ?????## #???? | | ??????? ????## #????? | | ??????###??#### % ###????? | | ??????????## ## ### ##??????? | | ????????### d @ ##?# ##??? #???????? | | ??????### #???###????? ??????? | | ?????## ##???????????? ##??????? | | ???### ##??????????????????????? | | ??## #### ##???????????????????????? | | ??# ####??####????????????????????????? | | ??# ##?????????????????????????????????? | | ??# ##??????????????????????????????????? | | ??# ##???????????????????????????????????? | | ??###????????????????????????????????????? | | ?????????????????????????????????????????? | | ?????????????????????????????????????????? | | ?????????????????????????????????????????? | | ?????????????????????????????????????????? | | ?????????????????????????????????????????? | | ?????????????????????????????????????????? | | ?????????????????????????????????????????? | | ?????????????????????????????????????????? | | ?????????????????????????????????????????? | | ?????????????????????????????????????????? | | ?????????????????????????????????????????? | | ?????????????????????????????????????????? | | ?????????????????????????????????????????? | | ?????????????????????????????????????????? | | ?????????????????????????????????????????? | +----------------------------------------------------+ Best States ------------- Heat Dissipation 28 Energy Generation 10 Energy Capacity 125 Matter Stores 350 Matter Capacity 350 Sight Range 18 Terrain Scan Density 10 Evasion (%) 55 Item Schematics ----------------- EM Pulse Gun | -9/Materials | Scanalyzed Robot Schematics ------------------ None Fabricated ------------ Nothing Alien Tech Used ----------------- None Achievements -------------- None Challenges ------------ None Game ------ Seed HybridMobileMultitool Manual? 0 Play Time 00:09:49 Cumulative 71.6 hours Start 2024.03.04 @ 15:10:40 End 2024.03.04 @ 19:31:30 Sessions 2 Manual Loads 0 Difficulty Rogue Special Mode None Game No. 75 Rogue 75 Adventurer 0 Explorer 0 Win Type - Total 0 Types 0/0/0/0/0/0/0/0/0 Lore% 30 Gallery% 43 Achievement% 29 Wizard Run 0 Options --------- Layout 2 ASCII 1 Keyboard 1 Movement Numpad Keybinds 0 Fullscreen 2 Font 32/TamsynBold Map View 50x44 Zoom Use 0% Tactical HUD 1 Map Filters NONE Filters NONE Steam 1 RUN: 75566d33-7e9a-410e-b24e-324de3a764da